OrganisationURI,OrganisationLabel,OrganisationalUnit,TransactionNumber,Invoice Ref.,BeneficiaryName,Expense Type,Purpose,PaymentDate,Amount
http://statistics.data.gov.uk/id/local-authority-district/23UB,Cheltenham Borough Council,Car Parks - Off Street R&M,14041465,179247,A & E Fire Equipment Limited,R2083-CPK101,R&M of Build - Routine,11/12/2015,737.14 
http://statistics.data.gov.uk/id/local-authority-district/23UB,Cheltenham Borough Council,Prince of Wales Stadium Repairs & Maintenance,14041544,179616,A & E Fire Equipment Limited,R2004-REC112,R & M of Build Programmed,11/12/2015,"7,910.32 "
http://statistics.data.gov.uk/id/local-authority-district/23UB,Cheltenham Borough Council,Repairs and Maintenance,14041442,179645,A & E Fire Equipment Limited,R2083-HRA100,R&M of Build - Routine,11/12/2015,"1,344.73 "
http://statistics.data.gov.uk/id/local-authority-district/23UB,Cheltenham Borough Council,Door Entry,14041284,30163,Allhands Limited T/A Harrold Jones Services,C1107-CAH010,Building Works,04/12/2015,926.00 
http://statistics.data.gov.uk/id/local-authority-district/23UB,Cheltenham Borough Council,Neighbourhood works,14041301,30187,Allhands Limited T/A Harrold Jones Services,C1107-CAH005,Building Works,04/12/2015,738.00 
http://statistics.data.gov.uk/id/local-authority-district/23UB,Cheltenham Borough Council,Flood Risk Management,14041610,883,Anderson Civil Engineering UK Limited,R5001-FRM101,TPP - Major External Contractors,18/12/2015,724.50 
http://statistics.data.gov.uk/id/local-authority-district/23UB,Cheltenham Borough Council,Flood Risk Management,14041612,885,Anderson Civil Engineering UK Limited,R5001-FRM101,TPP - Major External Contractors,18/12/2015,965.70 
http://statistics.data.gov.uk/id/local-authority-district/23UB,Cheltenham Borough Council,Cheltenham Municipal Offices,14041853,83782,Applied Satellite Technology Systems Limited,R4003-ADB101,Tools & Equipment - R & M,23/12/2015,538.88 
http://statistics.data.gov.uk/id/local-authority-district/23UB,Cheltenham Borough Council,Development Control - Applications,14041405,11812,Artful Limited,R4317-DEV001,Non Staff Advertising,11/12/2015,"2,321.28 "
http://statistics.data.gov.uk/id/local-authority-district/23UB,Cheltenham Borough Council,Development Control - Applications,14041514,11845,Artful Limited,R4317-DEV001,Non Staff Advertising,18/12/2015,"2,482.48 "
http://statistics.data.gov.uk/id/local-authority-district/23UB,Cheltenham Borough Council,"Cemetery, Crematorium and Churchyards",14041359,13459,Ashdown Supplies,R4011-CCM001,Goods For Resale,04/12/2015,"1,050.00 "
http://statistics.data.gov.uk/id/local-authority-district/23UB,Cheltenham Borough Council,Building Control - Fee Earning Work,14041322,BRG555,B R G Interim Solutions Limited,R1100-BUC001,Agency Staff,04/12/2015,"1,869.58 "
http://statistics.data.gov.uk/id/local-authority-district/23UB,Cheltenham Borough Council,Building Control - Fee Earning Work,14041319,BRG571,B R G Interim Solutions Limited,R1100-BUC001,Agency Staff,04/12/2015,"1,860.54 "
http://statistics.data.gov.uk/id/local-authority-district/23UB,Cheltenham Borough Council,Building Control - Fee Earning Work,14041321,BRG602,B R G Interim Solutions Limited,R1100-BUC001,Agency Staff,04/12/2015,"1,161.74 "
http://statistics.data.gov.uk/id/local-authority-district/23UB,Cheltenham Borough Council,Building Control - Fee Earning Work,14041320,BRG647,B R G Interim Solutions Limited,R1100-BUC001,Agency Staff,04/12/2015,"1,823.70 "
http://statistics.data.gov.uk/id/local-authority-district/23UB,Cheltenham Borough Council,Building Control - Fee Earning Work,14041824,BRG693,B R G Interim Solutions Limited,R1100-BUC001,Agency Staff,23/12/2015,"1,206.27 "
http://statistics.data.gov.uk/id/local-authority-district/23UB,Cheltenham Borough Council,Building Control - Fee Earning Work,14041826,BRG728,B R G Interim Solutions Limited,R1100-BUC001,Agency Staff,23/12/2015,"1,792.41 "
http://statistics.data.gov.uk/id/local-authority-district/23UB,Cheltenham Borough Council,Trees,14041363,104717,Barcham Trees plc,R2070-PLP006,Tree Work,04/12/2015,"1,482.00 "
http://statistics.data.gov.uk/id/local-authority-district/23UB,Cheltenham Borough Council,External Improvements,14041362,C5061-2083/5300,Bersche-Rolt Limited,C1107-CAH003,Building Works,04/12/2015,"8,274.23 "
http://statistics.data.gov.uk/id/local-authority-district/23UB,Cheltenham Borough Council,Cheltenham Business Partnership,14041592,152811-037,Blackadder Media Limited,R4411-HLD130,Consultancy Fees,11/12/2015,"4,290.00 "
http://statistics.data.gov.uk/id/local-authority-district/23UB,Cheltenham Borough Council,Supervision and Management,14041920,Q009 FR,BT (Business Billing - Durham),R4515-HRA110,Comms - Telephone Call Charges,23/12/2015,965.61 
http://statistics.data.gov.uk/id/local-authority-district/23UB,Cheltenham Borough Council,External Improvements,14041606,6708,C &  R Decorating and Maintenance Limited,C1107-CAH003,Building Works,18/12/2015,"2,682.50 "
http://statistics.data.gov.uk/id/local-authority-district/23UB,Cheltenham Borough Council,Flood Risk Management,14041811,6747,CC Ground Investigations Limited,R5001-FRM101,TPP - Major External Contractors,23/12/2015,"6,824.50 "
http://statistics.data.gov.uk/id/local-authority-district/23UB,Cheltenham Borough Council,Trees,14038556,CBC/md/210715,Cheltenham Tree Services Limited,R2070-PLP006,Tree Work,11/12/2015,"2,450.00 "
http://statistics.data.gov.uk/id/local-authority-district/23UB,Cheltenham Borough Council,Trees,14039634,cbc/mg/070815,Cheltenham Tree Services Limited,R2070-PLP006,Tree Work,11/12/2015,"3,950.00 "
http://statistics.data.gov.uk/id/local-authority-district/23UB,Cheltenham Borough Council,Supervision and Management,14041334,87,Chris Arnold Tree Surgery,R2070-HRA110,Tree Work,11/12/2015,"1,020.00 "
http://statistics.data.gov.uk/id/local-authority-district/23UB,Cheltenham Borough Council,Xmas in Cheltenham,14041563,1521436,Classique Promotions Limited,R4014-ECD101,Marketing,11/12/2015,"1,100.00 "
http://statistics.data.gov.uk/id/local-authority-district/23UB,Cheltenham Borough Council,"Cemetery, Crematorium and Churchyards",14041250,553033,Comensura Limited,R1100-CCM001,Agency Staff,04/12/2015,"1,818.45 "
http://statistics.data.gov.uk/id/local-authority-district/23UB,Cheltenham Borough Council,"Cemetery, Crematorium and Churchyards",14041792,554044,Comensura Limited,R1100-CCM001,Agency Staff,23/12/2015,"1,073.12 "
http://statistics.data.gov.uk/id/local-authority-district/23UB,Cheltenham Borough Council,"Cemetery, Crematorium and Churchyards",14041912,554146,Comensura Limited,R1100-CCM001,Agency Staff,23/12/2015,"1,360.88 "
http://statistics.data.gov.uk/id/local-authority-district/23UB,Cheltenham Borough Council,Flood Risk Management,14041267,C26173,Cotswold Drain Service Limited,R5001-FRM101,TPP - Major External Contractors,04/12/2015,850.00 
http://statistics.data.gov.uk/id/local-authority-district/23UB,Cheltenham Borough Council,"Cemetery, Crematorium and Churchyards",14041802,G1028,D Jones T/A Moonbeam,R2076-CCM001,Grounds Maintenance - Non Contract,23/12/2015,500.00 
http://statistics.data.gov.uk/id/local-authority-district/23UB,Cheltenham Borough Council,"Cemetery, Crematorium and Churchyards",14041801,G1029,D Jones T/A Moonbeam,R2076-CCM001,Grounds Maintenance - Non Contract,23/12/2015,500.00 
http://statistics.data.gov.uk/id/local-authority-district/23UB,Cheltenham Borough Council,Community Development,14041771,301115,Deborah Jeremiah,R6280-COM001,Grants,23/12/2015,500.00 
http://statistics.data.gov.uk/id/local-authority-district/23UB,Cheltenham Borough Council,Cheltenham Municipal Offices,14041735,2426,DMXpressions Limited,R2061-ADB101,R & M of Build Cyclical Electric Inspections,18/12/2015,"2,148.00 "
http://statistics.data.gov.uk/id/local-authority-district/23UB,Cheltenham Borough Council,Joint Core Strategy,14041331,28750,DPDS Regional Limited - DPDS Consulting Group,R4400-PLP101,Services - Professional Fees,04/12/2015,"18,845.00 "
http://statistics.data.gov.uk/id/local-authority-district/23UB,Cheltenham Borough Council,Car Parks - Off Street R&M,14041265,445360,DTZ DTL Limited,R2001-CPK101,R & M of Fix & Fit - General,18/12/2015,"20,000.00 "
http://statistics.data.gov.uk/id/local-authority-district/23UB,Cheltenham Borough Council,Cheltenham Municipal Offices,14041777,80860397,Dx Network Services Limited,R4308-ADB101,Stationery,18/12/2015,"1,550.00 "
http://statistics.data.gov.uk/id/local-authority-district/23UB,Cheltenham Borough Council,Recreation Centre Repairs & Maintenance,14041182,301267/10/2015,Ener-G Combined Power (South) Limited,R2100-REC111,Electricity,04/12/2015,"3,047.39 "
http://statistics.data.gov.uk/id/local-authority-district/23UB,Cheltenham Borough Council,Recreation Centre Repairs & Maintenance,14041854,301267/11/2015,Ener-G Combined Power (South) Limited,R2100-REC111,Electricity,23/12/2015,"2,850.70 "
http://statistics.data.gov.uk/id/local-authority-district/23UB,Cheltenham Borough Council,Joint Core Strategy,14041367,GCT247-16,Enfusion Limited,R4400-PLP101,Services - Professional Fees,04/12/2015,"3,000.00 "
http://statistics.data.gov.uk/id/local-authority-district/23UB,Cheltenham Borough Council,Joint Core Strategy,14041264,GCT247-17,Enfusion Limited,R4400-PLP101,Services - Professional Fees,04/12/2015,"1,548.00 "
http://statistics.data.gov.uk/id/local-authority-district/23UB,Cheltenham Borough Council,Neighbourhood works,14041810,WM006621,English Landscapes Limited t/a The Landscape Group,C1107-CAH005,Building Works,23/12/2015,"76,934.84 "
http://statistics.data.gov.uk/id/local-authority-district/23UB,Cheltenham Borough Council,Neighbourhood works,14041809,WM006622,English Landscapes Limited t/a The Landscape Group,C1107-CAH005,Building Works,23/12/2015,"19,470.00 "
http://statistics.data.gov.uk/id/local-authority-district/23UB,Cheltenham Borough Council,Art Gallery & Museum Repairs & Maintenance,14041333,H122C4954F,E-on Energy,R2100-CUL117,Electricity,18/12/2015,"2,876.83 "
http://statistics.data.gov.uk/id/local-authority-district/23UB,Cheltenham Borough Council,External Improvements,14041407,GP15/014250,G Purchase Construction Limited,C1107-CAH003,Building Works,04/12/2015,"35,666.75 "
http://statistics.data.gov.uk/id/local-authority-district/23UB,Cheltenham Borough Council,Sustainability Measures,14041438,76174,Glevum Heating & Plumbing Limited,C1107-CAH032,Building Works,04/12/2015,"40,045.00 "
http://statistics.data.gov.uk/id/local-authority-district/23UB,Cheltenham Borough Council,Adaptation Support Grants,14041847,1800381546,Gloucestershire County Council,C5000-CAP222,Grants,23/12/2015,"8,000.00 "
http://statistics.data.gov.uk/id/local-authority-district/23UB,Cheltenham Borough Council,Planning Policy,14041229,3352,Gloucestershire Wildlife Trust,R4701-PLP001,Subscriptions,04/12/2015,"4,800.00 "
http://statistics.data.gov.uk/id/local-authority-district/23UB,Cheltenham Borough Council,Planning Policy,14041351,3401,Gloucestershire Wildlife Trust,R4400-PLP001,Services - Professional Fees,04/12/2015,"4,800.00 "
http://statistics.data.gov.uk/id/local-authority-district/23UB,Cheltenham Borough Council,"Cemetery, Crematorium and Churchyards",14041800,10013000,Goldingham Contracts Limited,R2075-CCM001,Grounds Maintenance - Contract,23/12/2015,562.00 
http://statistics.data.gov.uk/id/local-authority-district/23UB,Cheltenham Borough Council,Building Control - Fee Earning Work,14041827,0216/15,Graham Harper Associates Limited,R1100-BUC001,Agency Staff,23/12/2015,"2,653.01 "
http://statistics.data.gov.uk/id/local-authority-district/23UB,Cheltenham Borough Council,Car Parks - Off Street R&M,14041542,2976,Greenway Partnership Limited T/A GPL Building Services,R2004-CPK101,R & M of Build Programmed,11/12/2015,"5,233.95 "
http://statistics.data.gov.uk/id/local-authority-district/23UB,Cheltenham Borough Council,Xmas in Cheltenham,14041436,3000,Greenway Partnership Limited T/A GPL Building Services,R2004-ECD101,R & M of Build Programmed,11/12/2015,"8,220.00 "
http://statistics.data.gov.uk/id/local-authority-district/23UB,Cheltenham Borough Council,Car Parks - Off Street R&M,14041549,3035,Greenway Partnership Limited T/A GPL Building Services,R2062-CPK101,R & M of Build Cyclical Electrical Remedials,11/12/2015,896.12 
http://statistics.data.gov.uk/id/local-authority-district/23UB,Cheltenham Borough Council,Cheltenham Depot,14041501,3053,Greenway Partnership Limited T/A GPL Building Services,R2005-ADB103,R & M of Build Health & Safety,11/12/2015,"1,280.48 "
http://statistics.data.gov.uk/id/local-authority-district/23UB,Cheltenham Borough Council,Prince of Wales Stadium Repairs & Maintenance,14041543,3058,Greenway Partnership Limited T/A GPL Building Services,R2004-REC112,R & M of Build Programmed,11/12/2015,"1,248.40 "
http://statistics.data.gov.uk/id/local-authority-district/23UB,Cheltenham Borough Council,Cheltenham Depot,14041538,3061,Greenway Partnership Limited T/A GPL Building Services,R2079-ADB103,Sanitary and Plumbing,11/12/2015,628.00 
http://statistics.data.gov.uk/id/local-authority-district/23UB,Cheltenham Borough Council,Cheltenham Depot,14041541,3062,Greenway Partnership Limited T/A GPL Building Services,R2043-ADB103,R & M of Build Drain Cleaning,11/12/2015,531.46 
http://statistics.data.gov.uk/id/local-authority-district/23UB,Cheltenham Borough Council,Registration of Electors,14041573,9389,Halarose Limited,R4531-ELE001,IT - Purchase of Software,11/12/2015,"1,200.00 "
http://statistics.data.gov.uk/id/local-authority-district/23UB,Cheltenham Borough Council,Individual Electoral Registration,14041599,9396,Halarose Limited,R4400-ELE010,Services - Professional Fees,18/12/2015,"2,968.00 "
http://statistics.data.gov.uk/id/local-authority-district/23UB,Cheltenham Borough Council,Cheltenham Business Partnership,14041615,111503,Heartflood Limited,R4411-HLD130,Consultancy Fees,18/12/2015,"9,265.50 "
http://statistics.data.gov.uk/id/local-authority-district/23UB,Cheltenham Borough Council,Art Gallery & Museum Repairs & Maintenance,14041632,15261,Hellion Environmental Limited,R2080-CUL117,Mechanical Services,18/12/2015,520.84 
http://statistics.data.gov.uk/id/local-authority-district/23UB,Cheltenham Borough Council,Recreation Centre Repairs & Maintenance,14041642,15275,Hellion Environmental Limited,R2080-REC111,Mechanical Services,18/12/2015,545.63 
http://statistics.data.gov.uk/id/local-authority-district/23UB,Cheltenham Borough Council,General Fund Balance Sheet,14041556,CISDEDUCT0611-051215,HMRC (CBC - CIS),B6220-BAL100,CIS Deductions Control (reallocated),11/12/2015,"3,764.88 "
http://statistics.data.gov.uk/id/local-authority-district/23UB,Cheltenham Borough Council,Repairs and Maintenance,14041605,150255AA8,Ian Williams Limited,R2060-HRA100,R & M of Build Cyclical Painting Communal Areas,18/12/2015,"22,466.49 "
http://statistics.data.gov.uk/id/local-authority-district/23UB,Cheltenham Borough Council,Building Control - Fee Earning Work,14040571,7005117,Idox Software Limited,R4530-BUC001,IT - Purchase of Hardware,04/12/2015,"7,365.00 "
http://statistics.data.gov.uk/id/local-authority-district/23UB,Cheltenham Borough Council,Licensing,14041330,7007446,Idox Software Limited,R4531-REG002,IT - Purchase of Software,04/12/2015,"3,950.00 "
http://statistics.data.gov.uk/id/local-authority-district/23UB,Cheltenham Borough Council,Development costs - Garage Sites 2a,14041602,1,J Harper & Sons (Leominster) Limited,C1107-CAH052,Building Works,11/12/2015,"70,023.33 "
http://statistics.data.gov.uk/id/local-authority-district/23UB,Cheltenham Borough Council,Sports & Open Spaces Operations,14041390,15/048,J P North (Farmer),R2071-OPS002,Open Spaces and Grassed Areas,04/12/2015,"1,000.00 "
http://statistics.data.gov.uk/id/local-authority-district/23UB,Cheltenham Borough Council,Joint Core Strategy,14041566,88,Jim Claydon - Planner,R4400-PLP101,Services - Professional Fees,18/12/2015,678.15 
http://statistics.data.gov.uk/id/local-authority-district/23UB,Cheltenham Borough Council,Xmas in Cheltenham,14041565,20151123,Jo Heatley Events,R4014-ECD101,Marketing,11/12/2015,850.00 
http://statistics.data.gov.uk/id/local-authority-district/23UB,Cheltenham Borough Council,Development costs - Garage Sites 2b,14041292,1962/5,John S Doody FRICS,C1107-CAH054,Building Works,04/12/2015,"1,000.00 "
http://statistics.data.gov.uk/id/local-authority-district/23UB,Cheltenham Borough Council,Cheltenham Depot,14041451,INV-0018,JS Security Limited,R2705-ADB103,Security Systems,11/12/2015,651.00 
http://statistics.data.gov.uk/id/local-authority-district/23UB,Cheltenham Borough Council,Cheltenham Depot,14041453,INV-0073,JS Security Limited,R2705-ADB103,Security Systems,11/12/2015,630.00 
http://statistics.data.gov.uk/id/local-authority-district/23UB,Cheltenham Borough Council,Cheltenham Depot,14041454,INV-0074,JS Security Limited,R2705-ADB103,Security Systems,11/12/2015,651.00 
http://statistics.data.gov.uk/id/local-authority-district/23UB,Cheltenham Borough Council,Cheltenham Depot,14041452,INV-0105,JS Security Limited,R2705-ADB103,Security Systems,11/12/2015,630.00 
http://statistics.data.gov.uk/id/local-authority-district/23UB,Cheltenham Borough Council,External Improvements,14041604,1498,K B Building Services UK Limited,C1107-CAH003,Building Works,18/12/2015,"1,000.00 "
http://statistics.data.gov.uk/id/local-authority-district/23UB,Cheltenham Borough Council,Play areas enhancement,14041370,SI218807,Kompan Limited,C4000-CAP102,Acquisition of Equipment,04/12/2015,"6,083.10 "
http://statistics.data.gov.uk/id/local-authority-district/23UB,Cheltenham Borough Council,Conservation,14041843,151101,Lewis Advisory Services Limited,R1100-PLP004,Agency Staff,23/12/2015,"1,560.00 "
http://statistics.data.gov.uk/id/local-authority-district/23UB,Cheltenham Borough Council,Conservation,14041844,151201,Lewis Advisory Services Limited,R1100-PLP004,Agency Staff,23/12/2015,"1,560.00 "
http://statistics.data.gov.uk/id/local-authority-district/23UB,Cheltenham Borough Council,New Heating Installations,14041440,1147837,Liberty Gas Group,C1107-CAH009,Building Works,04/12/2015,"3,554.70 "
http://statistics.data.gov.uk/id/local-authority-district/23UB,Cheltenham Borough Council,Repairs and Maintenance,14041439,1147840,Liberty Gas Group,R2040-HRA100,R & M of Build Central Heating,04/12/2015,"42,985.47 "
http://statistics.data.gov.uk/id/local-authority-district/23UB,Cheltenham Borough Council,Car Parks - Off Street Operations,14041796,6128007990,Liberty Printers (AR & RFReddin) Limited,R4300-CPK001,Printing - Services,23/12/2015,764.00 
http://statistics.data.gov.uk/id/local-authority-district/23UB,Cheltenham Borough Council,Land Charges,14041378,40145030,Local Government Association (LGA),R4426-BUC004,Legal Expenses,04/12/2015,"1,737.66 "
http://statistics.data.gov.uk/id/local-authority-district/23UB,Cheltenham Borough Council,Sustainability Measures,14041601,1328,Low Carbon Exchange (LCX Solar Limited),C1107-CAH032,Building Works,11/12/2015,"55,672.75 "
http://statistics.data.gov.uk/id/local-authority-district/23UB,Cheltenham Borough Council,Play areas enhancement,14041393,137276B,Matta Products (UK) Limited,C4000-CAP102,Acquisition of Equipment,04/12/2015,"15,975.45 "
http://statistics.data.gov.uk/id/local-authority-district/23UB,Cheltenham Borough Council,Sports & Open Spaces Operations,14041392,137435,Matta Products (UK) Limited,R4003-OPS002,Tools & Equipment - R & M,04/12/2015,"4,288.00 "
http://statistics.data.gov.uk/id/local-authority-district/23UB,Cheltenham Borough Council,External Improvements,14041386,4571,Mcdonnell Price Roofing Contractors Limited,C1107-CAH003,Building Works,04/12/2015,"19,909.66 "
http://statistics.data.gov.uk/id/local-authority-district/23UB,Cheltenham Borough Council,Trees,14041344,1516,Meadowside Tree Care,R2070-PLP006,Tree Work,11/12/2015,725.00 
http://statistics.data.gov.uk/id/local-authority-district/23UB,Cheltenham Borough Council,Car Parks - Off Street R&M,14041684,5822/91093237,Mitie Pest Control Limited,R2083-CPK101,R&M of Build - Routine,18/12/2015,"1,344.00 "
http://statistics.data.gov.uk/id/local-authority-district/23UB,Cheltenham Borough Council,Democratic Representation and Management,14041820,2015481,Modern Mindset Limited,R4530-DRM001,IT - Purchase of Hardware,23/12/2015,"1,200.00 "
http://statistics.data.gov.uk/id/local-authority-district/23UB,Cheltenham Borough Council,Democratic Representation and Management,14041821,2015487,Modern Mindset Limited,R4400-DRM001,Services - Professional Fees,23/12/2015,"7,010.00 "
http://statistics.data.gov.uk/id/local-authority-district/23UB,Cheltenham Borough Council,Repairs and Maintenance,14041368,101255,Morgan Lambert Limited,R2040-HRA100,R & M of Build Central Heating,04/12/2015,880.00 
http://statistics.data.gov.uk/id/local-authority-district/23UB,Cheltenham Borough Council,Sheltered Housing,14041353,1807,MPL Wrought Iron LLP,C1107-CAH014,Building Works,04/12/2015,890.00 
http://statistics.data.gov.uk/id/local-authority-district/23UB,Cheltenham Borough Council,Joint Core Strategy,14041356,CTG JCS 006,Mr Ian Kemp,R4400-PLP101,Services - Professional Fees,04/12/2015,"1,735.03 "
http://statistics.data.gov.uk/id/local-authority-district/23UB,Cheltenham Borough Council,"Cemetery, Crematorium and Churchyards",14041803,30-11-2015,Mr J Sureda,R4401-CCM001,Services - Fees and Charges,23/12/2015,780.60 
http://statistics.data.gov.uk/id/local-authority-district/23UB,Cheltenham Borough Council,Training & Development,14041158,I289,MW Sigma Limited T/A MAX Training and Development & MAX Conflict Management,R1652-SUP020,Training Fees (External),18/12/2015,892.50 
http://statistics.data.gov.uk/id/local-authority-district/23UB,Cheltenham Borough Council,Joint Core Strategy,14041328,94261,Nathaniel Lichfield & Partners,R4400-PLP101,Services - Professional Fees,04/12/2015,"9,726.25 "
http://statistics.data.gov.uk/id/local-authority-district/23UB,Cheltenham Borough Council,Royal Well Bus Node,14041728,2150,Nick Bevan Consulting Limited,R2004-PUT101,R & M of Build Programmed,18/12/2015,718.75 
http://statistics.data.gov.uk/id/local-authority-district/23UB,Cheltenham Borough Council,Royal Well Bus Node,14041729,2220,Nick Bevan Consulting Limited,R2004-PUT101,R & M of Build Programmed,18/12/2015,500.00 
http://statistics.data.gov.uk/id/local-authority-district/23UB,Cheltenham Borough Council,Fire Protection,14041343,9095,NKS Contracts (Central) Limited,C1107-CAH015,Building Works,04/12/2015,"1,756.72 "
http://statistics.data.gov.uk/id/local-authority-district/23UB,Cheltenham Borough Council,Window & Door Renewals,14041381,9131,NKS Contracts (Central) Limited,C1107-CAH017,Building Works,04/12/2015,"4,917.55 "
http://statistics.data.gov.uk/id/local-authority-district/23UB,Cheltenham Borough Council,External Improvements,14041559,9172,NKS Contracts (Central) Limited,C1107-CAH003,Building Works,18/12/2015,"1,777.60 "
http://statistics.data.gov.uk/id/local-authority-district/23UB,Cheltenham Borough Council,Joint Core Strategy,14041607,2015/5,NM Strategic Solutions Limited,R4400-PLP101,Services - Professional Fees,11/12/2015,"6,368.55 "
http://statistics.data.gov.uk/id/local-authority-district/23UB,Cheltenham Borough Council,CCTV,14041537,611746,OpenView Security Solutions Limited,R4003-CCT001,Tools & Equipment - R & M,18/12/2015,"1,419.17 "
http://statistics.data.gov.uk/id/local-authority-district/23UB,Cheltenham Borough Council,Repairs and Maintenance,14041764,O0390143,Orbis Protect Limited,R2012-HRA100,R & M of Build Standby and Call Out,23/12/2015,"1,047.03 "
http://statistics.data.gov.uk/id/local-authority-district/23UB,Cheltenham Borough Council,Prince of Wales Stadium Repairs & Maintenance,14041746,6020,Outdoor High Light Limited,R2083-REC112,R&M of Build - Routine,18/12/2015,"5,407.22 "
http://statistics.data.gov.uk/id/local-authority-district/23UB,Cheltenham Borough Council,Joint Core Strategy,14041462,397883,Ove Arup & Partners Limited,R4400-PLP101,Services - Professional Fees,11/12/2015,"2,000.00 "
http://statistics.data.gov.uk/id/local-authority-district/23UB,Cheltenham Borough Council,Joint Core Strategy,14041571,398494,Ove Arup & Partners Limited,R4400-PLP101,Services - Professional Fees,18/12/2015,"4,462.00 "
http://statistics.data.gov.uk/id/local-authority-district/23UB,Cheltenham Borough Council,Joint Core Strategy,14041780,399396,Ove Arup & Partners Limited,R4400-PLP101,Services - Professional Fees,18/12/2015,"10,050.00 "
http://statistics.data.gov.uk/id/local-authority-district/23UB,Cheltenham Borough Council,Material Bulking Plant,14041456,2118623,P W Commercial Co Limited T/A Printwaste,C3000-CAP302,Acquisition of Plant,11/12/2015,"181,965.00 "
http://statistics.data.gov.uk/id/local-authority-district/23UB,Cheltenham Borough Council,Car Parks - Off Street Operations,14041277,UK83322,Parkeon Limited,R4400-CPK001,Services - Professional Fees,04/12/2015,"2,090.92 "
http://statistics.data.gov.uk/id/local-authority-district/23UB,Cheltenham Borough Council,Development Control - Applications,14041230,191015,Pell Frischmann Consulting Engineers Limited,R4420-DEV001,Legal Expenses And Court Costs,11/12/2015,"4,200.00 "
http://statistics.data.gov.uk/id/local-authority-district/23UB,Cheltenham Borough Council,Development Control - Applications,14041260,Q1205,Pell Frischmann Consulting Engineers Limited,R4420-DEV001,Legal Expenses And Court Costs,04/12/2015,"4,200.00 "
http://statistics.data.gov.uk/id/local-authority-district/23UB,Cheltenham Borough Council,Joint Core Strategy,14041600,123448 MFE,Peter Brett Associates LLP,R4400-PLP101,Services - Professional Fees,18/12/2015,"3,000.00 "
http://statistics.data.gov.uk/id/local-authority-district/23UB,Cheltenham Borough Council,Sustainability Measures,14041384,INV-0052,Plymouth Energy Community Limited,C1107-CAH032,Building Works,04/12/2015,700.00 
http://statistics.data.gov.uk/id/local-authority-district/23UB,Cheltenham Borough Council,Community Safety (Crime Reduction),14041391,102776,Red Snapper Learning Limited,R4401-CCR001,Services - Fees and Charges,04/12/2015,695.00 
http://statistics.data.gov.uk/id/local-authority-district/23UB,Cheltenham Borough Council,Council Tax Collection,14041714,9050971620,Royal Mail,R4521-LTC001,Postages - franking machine,23/12/2015,593.31 
http://statistics.data.gov.uk/id/local-authority-district/23UB,Cheltenham Borough Council,Individual Electoral Registration,14041713,9051046701,Royal Mail,R4521-ELE010,Postages - franking machine,23/12/2015,606.64 
http://statistics.data.gov.uk/id/local-authority-district/23UB,Cheltenham Borough Council,Registration of Electors,14041712,9051061184,Royal Mail,R4520-ELE001,Postages - stamps,23/12/2015,900.07 
http://statistics.data.gov.uk/id/local-authority-district/23UB,Cheltenham Borough Council,Council Tax Collection,14041715,9051088348,Royal Mail,R4521-LTC001,Postages - franking machine,23/12/2015,568.80 
http://statistics.data.gov.uk/id/local-authority-district/23UB,Cheltenham Borough Council,Development Control - Applications,14041402,E0818,Ryder Landscape Consultants Limited,R4420-DEV001,Legal Expenses And Court Costs,11/12/2015,"2,943.75 "
http://statistics.data.gov.uk/id/local-authority-district/23UB,Cheltenham Borough Council,Sandford Lido car park,14041623,SANDFORD LIDO NOV 15,Sandford Parks Lido (Trading) Limited,R5003-CPK103,TPP - Agency Fees,18/12/2015,"-1,683.33 "
http://statistics.data.gov.uk/id/local-authority-district/23UB,Cheltenham Borough Council,Sandford Lido car park,14041623,SANDFORD LIDO NOV 15,Sandford Parks Lido (Trading) Limited,R5003-CPK103,TPP - Agency Fees,18/12/2015,"21,478.78 "
http://statistics.data.gov.uk/id/local-authority-district/23UB,Cheltenham Borough Council,Repairs and Maintenance,14041528,701,SAS EPC,R2018-HRA100,R & M of Build Voids Energy Performance Certificates,11/12/2015,713.00 
http://statistics.data.gov.uk/id/local-authority-district/23UB,Cheltenham Borough Council,Car Parks - Off Street Operations,14041515,IN148659CT,Scan Coin Limited,R4003-CPK001,Tools & Equipment - R & M,11/12/2015,"3,022.53 "
http://statistics.data.gov.uk/id/local-authority-district/23UB,Cheltenham Borough Council,Car Park Income Collection,14041358,523770,Security Plus+ Limited,R4435-CPK002,Cash Collection Contract,04/12/2015,896.42 
http://statistics.data.gov.uk/id/local-authority-district/23UB,Cheltenham Borough Council,Sports & Open Spaces Operations,14041360,21502,Shelley Signs Limited,R2076-OPS002,Grounds Maintenance - Non Contract,04/12/2015,830.00 
http://statistics.data.gov.uk/id/local-authority-district/23UB,Cheltenham Borough Council,Income and Expenditure on Investment Properties and Changes in Their Fair Value,14041516,77428,Signcraft Limited,R2004-FIE040,R & M of Build Programmed,18/12/2015,"29,971.00 "
http://statistics.data.gov.uk/id/local-authority-district/23UB,Cheltenham Borough Council,Printing Services,14041167,351323,Springfield Business Papers Limited,R4306-SUP022,Photocopier Charges - Consumables,04/12/2015,"1,035.00 "
http://statistics.data.gov.uk/id/local-authority-district/23UB,Cheltenham Borough Council,Parks & Gardens Operations,14041279,24580,Streetmaster (South Wales) Limited,R2500-OPS001,Fixtures and Fittings - Purchases,04/12/2015,"1,547.00 "
http://statistics.data.gov.uk/id/local-authority-district/23UB,Cheltenham Borough Council,Neighbourhood works,14041570,CGB/1413A,Sutcliffe Garages Limited,C1107-CAH005,Building Works,11/12/2015,"4,500.00 "
http://statistics.data.gov.uk/id/local-authority-district/23UB,Cheltenham Borough Council,Sports & Open Spaces Operations,14041576,4207,Sutcliffe Play South West Limited,R4003-OPS002,Tools & Equipment - R & M,11/12/2015,"6,145.46 "
http://statistics.data.gov.uk/id/local-authority-district/23UB,Cheltenham Borough Council,Civic Events,14041495,4925,System Six Design & Build,R4401-DRM012,Services - Fees and Charges,11/12/2015,715.00 
http://statistics.data.gov.uk/id/local-authority-district/23UB,Cheltenham Borough Council,Shopmobility,14041709,4927,System Six Design & Build,R2077-PUT102,R&M of Build - internal structures,23/12/2015,"3,522.00 "
http://statistics.data.gov.uk/id/local-authority-district/23UB,Cheltenham Borough Council,Internal Audit,14041379,60817945,Tameside Metropolitan Borough Council,R4701-SUP010,Subscriptions,04/12/2015,841.00 
http://statistics.data.gov.uk/id/local-authority-district/23UB,Cheltenham Borough Council,Supervision and Management,14041137,DEBT104345,Tewkesbury Borough Council,R4420-HRA110,Legal Expenses And Court Costs,04/12/2015,"9,462.00 "
http://statistics.data.gov.uk/id/local-authority-district/23UB,Cheltenham Borough Council,Income and Expenditure on Investment Properties and Changes in Their Fair Value,14041231,DEBT104387,Tewkesbury Borough Council,R4317-FIE040,Non Staff Advertising,04/12/2015,580.32 
http://statistics.data.gov.uk/id/local-authority-district/23UB,Cheltenham Borough Council,Income and Expenditure on Investment Properties and Changes in Their Fair Value,14041232,DEBT104388,Tewkesbury Borough Council,R4317-FIE040,Non Staff Advertising,04/12/2015,838.24 
http://statistics.data.gov.uk/id/local-authority-district/23UB,Cheltenham Borough Council,Housing Standards,14041591,DEBT104415,Tewkesbury Borough Council,R4317-HOS004,Non Staff Advertising,18/12/2015,"1,805.44 "
http://statistics.data.gov.uk/id/local-authority-district/23UB,Cheltenham Borough Council,Income and Expenditure on Investment Properties and Changes in Their Fair Value,14041519,DEBT104416,Tewkesbury Borough Council,R4426-FIE040,Legal Expenses,11/12/2015,640.00 
http://statistics.data.gov.uk/id/local-authority-district/23UB,Cheltenham Borough Council,Cultural - Service Management and Support Services,14041396,70013695,The Cheltenham Trust,R5001-CSM001,TPP - Major External Contractors,04/12/2015,"80,636.00 "
http://statistics.data.gov.uk/id/local-authority-district/23UB,Cheltenham Borough Council,Cultural - Service Management and Support Services,14041377,70014692,The Cheltenham Trust,R5001-CSM001,TPP - Major External Contractors,04/12/2015,"80,636.00 "
http://statistics.data.gov.uk/id/local-authority-district/23UB,Cheltenham Borough Council,Civic Events,14041258,70014763,The Cheltenham Trust,R2201-DRM012,Room Hire,04/12/2015,679.00 
http://statistics.data.gov.uk/id/local-authority-district/23UB,Cheltenham Borough Council,General Fund Balance Sheet,14041457,8.50028E+11,The Midcounties Co-operative,B6170-BAL100,Short Term Revenue Creditors (incl RIA) - Other entities and individuals,18/12/2015,"2,800.00 "
http://statistics.data.gov.uk/id/local-authority-district/23UB,Cheltenham Borough Council,Development Control - Applications,14041181,1073165,The Oyster Partnership Limited,R1100-DEV001,Agency Staff,04/12/2015,"1,162.50 "
http://statistics.data.gov.uk/id/local-authority-district/23UB,Cheltenham Borough Council,Development Control - Applications,14041180,1075139,The Oyster Partnership Limited,R1100-DEV001,Agency Staff,04/12/2015,862.50 
http://statistics.data.gov.uk/id/local-authority-district/23UB,Cheltenham Borough Council,Sports & Open Spaces Operations,14041568,20511,The Play Inspection Company Limited,R4003-OPS002,Tools & Equipment - R & M,11/12/2015,"3,699.40 "
http://statistics.data.gov.uk/id/local-authority-district/23UB,Cheltenham Borough Council,Disabled Facility Grants,14041580,REDACTED,The Surveying Practice - Client Account,C5000-CAP221,Grants,11/12/2015,"5,000.00 "
http://statistics.data.gov.uk/id/local-authority-district/23UB,Cheltenham Borough Council,Disabled Facility Grants,14041901,REDACTED,The Surveying Practice - Client Account,C5000-CAP221,Grants,23/12/2015,"11,549.55 "
http://statistics.data.gov.uk/id/local-authority-district/23UB,Cheltenham Borough Council,Disabled Facility Grants,14041833,REDACTED,The Surveying Practice - Client Account,C5000-CAP221,Grants,23/12/2015,"6,818.65 "
http://statistics.data.gov.uk/id/local-authority-district/23UB,Cheltenham Borough Council,Adaptations for the Disabled (CBC),14041579,REDACTED,The Surveying Practice - Client Account,C1107-CAH028,Building Works,11/12/2015,"7,796.66 "
http://statistics.data.gov.uk/id/local-authority-district/23UB,Cheltenham Borough Council,Disabled Facility Grants,14041832,REDACTED,The Surveying Practice - Client Account,C5000-CAP221,Grants,23/12/2015,"8,230.75 "
http://statistics.data.gov.uk/id/local-authority-district/23UB,Cheltenham Borough Council,Adaptations for the Disabled (CBC),14041445,REDACTED,The Surveying Practice - Client Account,C1107-CAH028,Building Works,11/12/2015,"15,027.16 "
http://statistics.data.gov.uk/id/local-authority-district/23UB,Cheltenham Borough Council,Disabled Facility Grants,14041830,REDACTED,The Surveying Practice - Client Account,C5000-CAP221,Grants,23/12/2015,"7,347.72 "
http://statistics.data.gov.uk/id/local-authority-district/23UB,Cheltenham Borough Council,Adaptation Support Grants,14041831,REDACTED,The Surveying Practice - Client Account,C5000-CAP222,Grants,23/12/2015,"2,840.85 "
http://statistics.data.gov.uk/id/local-authority-district/23UB,Cheltenham Borough Council,Disabled Facility Grants,14041581,REDACTED,The Surveying Practice - Client Account,C5000-CAP221,Grants,11/12/2015,"13,960.35 "
http://statistics.data.gov.uk/id/local-authority-district/23UB,Cheltenham Borough Council,Disabled Facility Grants,14041829,REDACTED,The Surveying Practice - Client Account,C5000-CAP221,Grants,23/12/2015,"9,899.45 "
http://statistics.data.gov.uk/id/local-authority-district/23UB,Cheltenham Borough Council,Disabled Facility Grants,14041578,REDACTED,The Surveying Practice - Client Account,C5000-CAP221,Grants,11/12/2015,"5,859.62 "
http://statistics.data.gov.uk/id/local-authority-district/23UB,Cheltenham Borough Council,Disabled Facility Grants,14041900,REDACTED,The Surveying Practice - Client Account,C5000-CAP221,Grants,23/12/2015,"5,618.43 "
http://statistics.data.gov.uk/id/local-authority-district/23UB,Cheltenham Borough Council,Disabled Facility Grants,14041203,REDACTED,The Surveying Practice - Client Account,C5000-CAP221,Grants,04/12/2015,"3,529.08 "
http://statistics.data.gov.uk/id/local-authority-district/23UB,Cheltenham Borough Council,Community Alarms,14041286,3001 BJH362,Travis Perkins Trading Co. Limited,R4000-SPP002,Equipment Purchase,18/12/2015,538.38 
http://statistics.data.gov.uk/id/local-authority-district/23UB,Cheltenham Borough Council,Community Alarms,14041569,3001 BJQ934,Travis Perkins Trading Co. Limited,R4000-SPP002,Equipment Purchase,18/12/2015,543.15 
http://statistics.data.gov.uk/id/local-authority-district/23UB,Cheltenham Borough Council,Parks & Gardens Operations,14041562,2510,Tree King Consulting Ltd,R2075-OPS001,Grounds Maintenance - Contract,11/12/2015,500.00 
http://statistics.data.gov.uk/id/local-authority-district/23UB,Cheltenham Borough Council,Community Alarms,14041822,3IN/10271936,Tunstall Healthcare (UK) Limited,R4000-SPP002,Equipment Purchase,23/12/2015,"1,010.00 "
http://statistics.data.gov.uk/id/local-authority-district/23UB,Cheltenham Borough Council,Household Waste,14041366,60007157,Ubico Limited,R5001-WST001,TPP - Major External Contractors,11/12/2015,"100,665.00 "
http://statistics.data.gov.uk/id/local-authority-district/23UB,Cheltenham Borough Council,Trade Waste,14041366,60007157,Ubico Limited,R5001-TRW001,TPP - Major External Contractors,11/12/2015,"43,815.00 "
http://statistics.data.gov.uk/id/local-authority-district/23UB,Cheltenham Borough Council,Recycling Centres,14041366,60007157,Ubico Limited,R5001-RYC004,TPP - Major External Contractors,11/12/2015,"43,681.67 "
http://statistics.data.gov.uk/id/local-authority-district/23UB,Cheltenham Borough Council,Bring Sites,14041366,60007157,Ubico Limited,R5001-RYC005,TPP - Major External Contractors,11/12/2015,"11,303.33 "
http://statistics.data.gov.uk/id/local-authority-district/23UB,Cheltenham Borough Council,Recycling Collection Schemes,14041366,60007157,Ubico Limited,R5001-RYC006,TPP - Major External Contractors,11/12/2015,"115,078.33 "
http://statistics.data.gov.uk/id/local-authority-district/23UB,Cheltenham Borough Council,Green Waste,14041366,60007157,Ubico Limited,R5001-RYC002,TPP - Major External Contractors,11/12/2015,"25,513.33 "
http://statistics.data.gov.uk/id/local-authority-district/23UB,Cheltenham Borough Council,Parks & Gardens Operations,14041366,60007157,Ubico Limited,R5001-OPS001,TPP - Major External Contractors,11/12/2015,"43,088.33 "
http://statistics.data.gov.uk/id/local-authority-district/23UB,Cheltenham Borough Council,Highways Agency Verges & Trees,14041366,60007157,Ubico Limited,R5001-ESR001,TPP - Major External Contractors,11/12/2015,"23,720.83 "
http://statistics.data.gov.uk/id/local-authority-district/23UB,Cheltenham Borough Council,Sports & Open Spaces Operations,14041366,60007157,Ubico Limited,R5001-OPS002,TPP - Major External Contractors,11/12/2015,"49,405.83 "
http://statistics.data.gov.uk/id/local-authority-district/23UB,Cheltenham Borough Council,Arle Road Nursery Operations,14041366,60007157,Ubico Limited,R5001-OPS101,TPP - Major External Contractors,11/12/2015,"14,624.17 "
http://statistics.data.gov.uk/id/local-authority-district/23UB,Cheltenham Borough Council,Street Cleaning,14041366,60007157,Ubico Limited,R5001-STC001,TPP - Major External Contractors,11/12/2015,"76,410.00 "
http://statistics.data.gov.uk/id/local-authority-district/23UB,Cheltenham Borough Council,Public Conveniences,14041366,60007157,Ubico Limited,R5001-REG019,TPP - Major External Contractors,11/12/2015,"6,239.17 "
http://statistics.data.gov.uk/id/local-authority-district/23UB,Cheltenham Borough Council,Supervision and Management,14041366,60007157,Ubico Limited,R2071-HRA110,Open Spaces and Grassed Areas,11/12/2015,"27,755.67 "
http://statistics.data.gov.uk/id/local-authority-district/23UB,Cheltenham Borough Council,Development Control - Applications,14041380,2.50001E+13,Valuation Office Agency (VOA),R4400-DEV001,Services - Professional Fees,04/12/2015,"2,800.00 "
http://statistics.data.gov.uk/id/local-authority-district/23UB,Cheltenham Borough Council,Joint Core Strategy,14041385,2.50001E+13,Valuation Office Agency (VOA),R4400-PLP101,Services - Professional Fees,04/12/2015,"3,559.00 "
http://statistics.data.gov.uk/id/local-authority-district/23UB,Cheltenham Borough Council,Development Control - Applications,14041261,2.50001E+13,Valuation Office Agency (VOA),R4400-DEV001,Services - Professional Fees,04/12/2015,761.53 
http://statistics.data.gov.uk/id/local-authority-district/23UB,Cheltenham Borough Council,Car Parks - Off Street Operations,14041878,CHL00212,Verrus (UK) Limited (Pay By Phone),R4401-CPK001,Services - Fees and Charges,23/12/2015,"1,927.33 "
http://statistics.data.gov.uk/id/local-authority-district/23UB,Cheltenham Borough Council,Car Parks - Off Street Operations,14041877,CHL00214,Verrus (UK) Limited (Pay By Phone),R4401-CPK001,Services - Fees and Charges,23/12/2015,"1,703.18 "
http://statistics.data.gov.uk/id/local-authority-district/23UB,Cheltenham Borough Council,Car Parks - Off Street Operations,14041876,CHL00224,Verrus (UK) Limited (Pay By Phone),R4401-CPK001,Services - Fees and Charges,23/12/2015,"2,083.43 "
http://statistics.data.gov.uk/id/local-authority-district/23UB,Cheltenham Borough Council,Car Parks - Off Street Operations,14041306,CHL00230,Verrus (UK) Limited (Pay By Phone),R4401-CPK001,Services - Fees and Charges,04/12/2015,"2,182.66 "
http://statistics.data.gov.uk/id/local-authority-district/23UB,Cheltenham Borough Council,Car Parks - Off Street Operations,14041874,CHL00232,Verrus (UK) Limited (Pay By Phone),R4401-CPK001,Services - Fees and Charges,23/12/2015,"2,541.50 "
http://statistics.data.gov.uk/id/local-authority-district/23UB,Cheltenham Borough Council,Garage Improvements,14041337,KP00113004,Western Power Distribution,C1107-CAH008,Building Works,04/12/2015,"1,401.40 "
http://statistics.data.gov.uk/id/local-authority-district/23UB,Cheltenham Borough Council,Community Welfare Grants,14041552,compride,African Community Foundation,R6280-GBD001,Grants,11/12/2015,"3,000.00 "
http://statistics.data.gov.uk/id/local-authority-district/23UB,Cheltenham Borough Council,Rent Control,14041428,039258 00 3,Carley Lowicki,R9910-HRA900,Refund of Overpiad Rent,04/12/2015,630.53 
http://statistics.data.gov.uk/id/local-authority-district/23UB,Cheltenham Borough Council,Community Development,14041446,STG/IP/2015/1,CHELT & TEWKS ALTERNATIVE PROVISION SCHOOL,R6280-COM001,Grants,11/12/2015,"1,000.00 "
http://statistics.data.gov.uk/id/local-authority-district/23UB,Cheltenham Borough Council,Community Welfare Grants,14041551,151015 insp fam,REDACTED,R6280-GBD001,Grants,11/12/2015,"4,000.00 "
http://statistics.data.gov.uk/id/local-authority-district/23UB,Cheltenham Borough Council,Rent Control,14041424,10636007,REDACTED,R9910-HRA900,Refund of Overpiad Rent,04/12/2015,582.34 
http://statistics.data.gov.uk/id/local-authority-district/23UB,Cheltenham Borough Council,Rent Control,14041841,5240001,REDACTED,R9910-HRA900,Refund of Overpiad Rent,23/12/2015,"2,707.94 "
http://statistics.data.gov.uk/id/local-authority-district/23UB,Cheltenham Borough Council,Property Services,14041332,2,REDACTED,R2004-SUP025,R & M of Build Programmed,04/12/2015,"12,276.39 "
http://statistics.data.gov.uk/id/local-authority-district/23UB,Cheltenham Borough Council,Rent Control,14041620,RENT REFUND (REDACTED),REDACTED,R9910-HRA900,Refund of Overpiad Rent,18/12/2015,"1,030.40 "
http://statistics.data.gov.uk/id/local-authority-district/23UB,Cheltenham Borough Council,Rent Control,14041427,033118 00 1,REDACTED,R9910-HRA900,Refund of Overpiad Rent,04/12/2015,"1,420.90 "
http://statistics.data.gov.uk/id/local-authority-district/23UB,Cheltenham Borough Council,Economic Development,14041432,Christmas 2015,The Montpellier Association,R4400-ECD001,Services - Professional Fees,11/12/2015,600.00 
http://statistics.data.gov.uk/id/local-authority-district/23UB,Cheltenham Borough Council,Homelessness,14041324,REDACTED,YOUNG & GILLING,R6280-HOM001,Grants,04/12/2015,600.00 
http://statistics.data.gov.uk/id/local-authority-district/23UB,Cheltenham Borough Council,Parks & Gardens Operations,10017211,Direct debit,SEVERN TRENT WATER,R2401-OPS001,Water Services - Metered,24/12/2015,511.81
http://statistics.data.gov.uk/id/local-authority-district/23UB,Cheltenham Borough Council,Pensions Backfunding,10017097,Direct debit,GLOUCESTERSHIRE LGPS ,R1901-SUP038,Contribution to Pension Fund,02/11/2015,211666.00
http://statistics.data.gov.uk/id/local-authority-district/23UB,Cheltenham Borough Council,Car Parks - Off Street Operations,10017064,Direct debit,SOUTHERN ELECTRIC  ,R2100-CPK001,Electricity,02/12/2015,586.73
http://statistics.data.gov.uk/id/local-authority-district/23UB,Cheltenham Borough Council,"Cemetery, Crematorium and Churchyards",10017064,Direct debit,SOUTHERN ELECTRIC  ,R2100-CCM001,Electricity,02/12/2015,651.07
http://statistics.data.gov.uk/id/local-authority-district/23UB,Cheltenham Borough Council,Pittville Pump Room Repairs & Maintenance,10017064,Direct debit,SOUTHERN ELECTRIC  ,R2100-CUL113,Electricity,02/12/2015,808.14
http://statistics.data.gov.uk/id/local-authority-district/23UB,Cheltenham Borough Council,Car Parks - Off Street Operations,10017064,Direct debit,SOUTHERN ELECTRIC  ,R2100-CPK001,Electricity,02/12/2015,980.16
http://statistics.data.gov.uk/id/local-authority-district/23UB,Cheltenham Borough Council,Art Gallery & Museum Repairs & Maintenance,10017064,Direct debit,SOUTHERN ELECTRIC  ,R2100-CUL117,Electricity,02/12/2015,994.60
http://statistics.data.gov.uk/id/local-authority-district/23UB,Cheltenham Borough Council,Art Gallery & Museum Repairs & Maintenance,10017064,Direct debit,SOUTHERN ELECTRIC  ,R2100-CUL117,Electricity,02/12/2015,1187.98
http://statistics.data.gov.uk/id/local-authority-district/23UB,Cheltenham Borough Council,"Cemetery, Crematorium and Churchyards",10017172,Direct debit,CORONA ,R2101-CCM001,Gas,21/12/2015,1018.88
http://statistics.data.gov.uk/id/local-authority-district/23UB,Cheltenham Borough Council,Arle Road Nursery Operations,10017172,Direct debit,CORONA ,R2101-OPS101,Gas,21/12/2015,1227.35
http://statistics.data.gov.uk/id/local-authority-district/23UB,Cheltenham Borough Council,Cheltenham Municipal Offices,10017211,Direct debit,SEVERN TRENT WATER ,R2401-ADB101,Water Services - Metered,24/12/2015,656.83
http://statistics.data.gov.uk/id/local-authority-district/23UB,Cheltenham Borough Council,Sports & Open Spaces Operations,10017211,Direct debit,SEVERN TRENT WATER ,R2401-OPS002,Water Services - Metered,24/12/2015,664.45
http://statistics.data.gov.uk/id/local-authority-district/23UB,Cheltenham Borough Council,Cheltenham Depot,10017210,Direct debit,SEVERN TRENT WATER ,R2401-ADB103,Water Services - Metered,24/12/2015,753.81
http://statistics.data.gov.uk/id/local-authority-district/23UB,Cheltenham Borough Council,Arle Road Nursery Operations,10017087,Direct debit,SEVERN TRENT WATER ,R2401-OPS101,Water Services - Metered,10/12/2015,830.62
http://statistics.data.gov.uk/id/local-authority-district/23UB,Cheltenham Borough Council,Recreation Centre Repairs & Maintenance,10017083,Direct debit,SEVERN TRENT WATER ,R2401-REC111,Water Services - Metered,24/11/2015,2010.07
http://statistics.data.gov.uk/id/local-authority-district/23UB,Cheltenham Borough Council,Public Conveniences,10017083,Direct debit,SEVERN TRENT WATER ,R2401-REG019,Water Services - Metered,24/11/2015,4977.70
http://statistics.data.gov.uk/id/local-authority-district/23UB,Cheltenham Borough Council,Car Parks - Off Street Operations,10017211,Direct debit,SEVERN TRENT WATER ,R2402-CPK001,Sewerage and Environmental Services,24/12/2015,707.19
http://statistics.data.gov.uk/id/local-authority-district/23UB,Cheltenham Borough Council,Car Parks - Off Street Operations,10017083,Direct debit,SEVERN TRENT WATER ,R2402-CPK001,Sewerage and Environmental Services,24/11/2015,730.77
http://statistics.data.gov.uk/id/local-authority-district/23UB,Cheltenham Borough Council,Pittville Pump Room Repairs & Maintenance,10017211,Direct debit,SEVERN TRENT WATER ,R2402-CUL113,Sewerage and Environmental Services,24/12/2015,975.65
http://statistics.data.gov.uk/id/local-authority-district/23UB,Cheltenham Borough Council,Cheltenham Depot,10017210,Direct debit,SEVERN TRENT WATER ,R2402-ADB103,Sewerage and Environmental Services,24/12/2015,1232.92
http://statistics.data.gov.uk/id/local-authority-district/23UB,Cheltenham Borough Council,Recreation Centre Repairs & Maintenance,10017083,Direct debit,SEVERN TRENT WATER ,R2402-REC111,Sewerage and Environmental Services,24/11/2015,1960.56
http://statistics.data.gov.uk/id/local-authority-district/23UB,Cheltenham Borough Council,Public Conveniences,10017083,Direct debit,SEVERN TRENT WATER ,R2402-REG019,Sewerage and Environmental Services,24/11/2015,2977.66
http://statistics.data.gov.uk/id/local-authority-district/23UB,Cheltenham Borough Council,Treasury Management,10017154,Direct debit,CARDNET ,R4428-COR006,Services - credit card charges,14/12/2015,824.72
http://statistics.data.gov.uk/id/local-authority-district/23UB,Cheltenham Borough Council,Treasury Management,10017154,Direct debit,CARDNET ,R4428-COR006,Services - credit card charges,14/12/2015,1459.39
http://statistics.data.gov.uk/id/local-authority-district/23UB,Cheltenham Borough Council,Treasury Management,10017108,Direct debit,CARDNET ,R4428-COR006,Services - credit card charges,14/12/2015,1584.08
http://statistics.data.gov.uk/id/local-authority-district/23UB,Cheltenham Borough Council,Telephones,10017231,Direct debit,VIRGIN MEDIA ,R4515-SUP006,Comms - Telephone Rental /Service charges,01/12/2015,613.49
http://statistics.data.gov.uk/id/local-authority-district/23UB,Cheltenham Borough Council,Telephones,10017097,Direct debit,VIRGIN MEDIA,R4515-SUP006,Comms - Telephone Rental /Service charges,02/11/2015,613.50
http://statistics.data.gov.uk/id/local-authority-district/23UB,Cheltenham Borough Council,Telephones,10017057,Direct debit,VIRGIN MEDIA,R4515-SUP006,Comms - Telephone Rental /Service charges,01/12/2015,1389.04
http://statistics.data.gov.uk/id/local-authority-district/23UB,Cheltenham Borough Council,Telephones,10017097,Direct debit,VIRGIN MEDIA,R4515-SUP006,Comms - Telephone Rental /Service charges,02/11/2015,1389.04
http://statistics.data.gov.uk/id/local-authority-district/23UB,Cheltenham Borough Council,Telephones,10017057,Direct debit,VIRGIN MEDIA,R4515-SUP006,Comms - Telephone Rental /Service charges,01/12/2015,1913.61
http://statistics.data.gov.uk/id/local-authority-district/23UB,Cheltenham Borough Council,Telephones,10017097,Direct debit,VIRGIN MEDIA,R4515-SUP006,Comms - Telephone Rental /Service charges,02/11/2015,2085.35
